[Event "2026 European Womens Championship"]
[Site "Batumi, GE"]
[Date "2026.05.27"]
[Round "3"]
[White "Skarbarchuk, Tetyana"]
[Black "Danielian, Elina"]
[Result "1/2-1/2"]
[Board "19"]
[TimeControl "5400+30"]
[WhiteFideId "14184494"]
[BlackFideId "13300210"]
[WhiteElo "2236"]
[BlackElo "2390"]
[BlackTitle "GM"]
[WhiteClock "0:04:35"]
[BlackClock "0:01:12"]
[Variant "Standard"]

1. d4 {[%clk 1:30:27]}  Nf6 {[%clk 1:30:55]} 2. c4 {[%clk 1:30:44]}  e6 {[%clk 1:31:21]} 3. Nc3 {[%clk 1:30:51]}  Bb4 {[%clk 1:31:42]}
4. f3 {[%clk 1:30:44]}  c5 {[%clk 1:30:07]} 5. d5 {[%clk 1:30:39]}  exd5 {[%clk 1:25:39]} 6. cxd5 {[%clk 1:31:01]}  d6 {[%clk 1:25:58]}
7. e4 {[%clk 1:30:38]}  O-O {[%clk 1:26:25]} 8. Nge2 {[%clk 1:30:32]}  b5 {[%clk 1:20:24]} 9. Ng3 {[%clk 1:24:31]}  a6 {[%clk 1:19:50]}
10. a4 {[%clk 1:16:34]}  bxa4 {[%clk 1:13:08]} 11. Rxa4 {[%clk 1:15:11]}  Re8 {[%clk 1:13:27]} 12. Be2 {[%clk 1:13:39]}  Nbd7 {[%clk 1:13:00]}
13. O-O {[%clk 1:12:57]}  Qc7 {[%clk 1:04:34]} 14. Kh1 {[%clk 1:06:41]}  Ne5 {[%clk 1:00:07]} 15. Bg5 {[%clk 0:42:35]}  Ned7 {[%clk 1:00:28]}
16. Nf5 {[%clk 0:42:19]}  Nb6 {[%clk 0:56:44]} 17. Nh6+ {[%clk 0:42:23]}  Kf8 {[%clk 0:53:36]} 18. Ra2 {[%clk 0:34:09]}  Ng8 {[%clk 0:50:31]}
19. Ng4 {[%clk 0:31:06]}  Ne7 {[%clk 0:48:43]} 20. f4 {[%clk 0:25:59]}  Bxg4 {[%clk 0:35:08]} 21. Bxg4 {[%clk 0:26:11]}  h6 {[%clk 0:32:30]}
22. Bxe7+ {[%clk 0:16:51]}  Qxe7 {[%clk 0:32:44]} 23. e5 {[%clk 0:15:44]}  dxe5 {[%clk 0:33:10]} 24. d6 {[%clk 0:16:11]}  Qd8 {[%clk 0:32:50]}
25. d7 {[%clk 0:16:23]}  Re7 {[%clk 0:32:27]} 26. fxe5 {[%clk 0:16:14]}  Nxd7 {[%clk 0:27:47]} 27. Nd5 {[%clk 0:11:49]}  Nxe5 {[%clk 0:20:08]}
28. Nxe7 {[%clk 0:12:15]}  Qxd1 {[%clk 0:17:09]} 29. Ng6+ {[%clk 0:12:26]}  Nxg6 {[%clk 0:17:36]} 30. Rxd1 {[%clk 0:12:28]}  Ne5 {[%clk 0:18:01]}
31. Be2 {[%clk 0:11:43]}  a5 {[%clk 0:18:28]} 32. Rd5 {[%clk 0:10:03]}  f6 {[%clk 0:17:57]} 33. Ra1 {[%clk 0:07:45]}  Ke7 {[%clk 0:18:12]}
34. Kg1 {[%clk 0:05:41]}  Ra7 {[%clk 0:15:35]} 35. Rad1 {[%clk 0:02:47]}  a4 {[%clk 0:15:19]} 36. Rd8 {[%clk 0:01:50]}  a3 {[%clk 0:12:17]}
37. bxa3 {[%clk 0:02:09]}  Rxa3 {[%clk 0:05:30]} 38. Rc8 {[%clk 0:01:27]}  Ra7 {[%clk 0:04:26]} 39. Kf1 {[%clk 0:01:33]}  Ke6 {[%clk 0:03:22]}
40. h3 {[%clk 0:01:15]}  Kf5 {[%clk 0:02:25]} 41. Rc1 {[%clk 0:00:42]}  Kf4 {[%clk 0:22:24]} 42. R8xc5 {[%clk 0:17:35]}  Bxc5 {[%clk 0:22:46]}
43. Rxc5 {[%clk 0:18:01]}  Ra2 {[%clk 0:19:07]} 44. Rc3 {[%clk 0:18:18]}  Ke4 {[%clk 0:17:37]} 45. Rb3 {[%clk 0:09:07]}  g6 {[%clk 0:11:54]}
46. Bf3+ {[%clk 0:04:12]}  Kd4 {[%clk 0:08:40]} 47. Kg1 {[%clk 0:04:11]}  h5 {[%clk 0:08:25]} 48. Rb4+ {[%clk 0:01:06]}  Ke3 {[%clk 0:06:37]}
49. Rb3+ {[%clk 0:01:23]}  Kd4 {[%clk 0:05:28]} 50. Rb4+ {[%clk 0:01:49]}  Kc5 {[%clk 0:05:27]} 51. Rf4 {[%clk 0:02:09]}  f5 {[%clk 0:05:06]}
52. Bxh5 {[%clk 0:01:17]}  Ra1+ {[%clk 0:01:18]} 53. Kh2 {[%clk 0:01:42]}  Nd3 {[%clk 0:01:13]} 54. Rf3 {[%clk 0:02:05]}  Ne1 {[%clk 0:01:09]}
55. Rf1 {[%clk 0:02:23]}  gxh5 {[%clk 0:01:07]} 56. Rxf5+ {[%clk 0:02:49]}  Kd4 {[%clk 0:01:22]} 57. Rxh5 {[%clk 0:03:13]}  Ra2 {[%clk 0:01:37]}
58. Rh4+ {[%clk 0:03:09]}  Ke3 {[%clk 0:01:32]} 59. Rg4 {[%clk 0:03:29]}  Nf3+ {[%clk 0:01:08]} 60. Kg3 {[%clk 0:03:50]}  Ne1 {[%clk 0:01:09]}
61. Kh2 {[%clk 0:04:10]}  Nf3+ {[%clk 0:01:11]} 62. Kg3 {[%clk 0:04:35]}  Ne1 {[%clk 0:01:12]} 1/2-1/2

[Event "2026 European Womens Championship"]
[Site "Batumi, GE"]
[Date "2026.05.27"]
[Round "3"]
[White "Piddubna, Bozhena"]
[Black "Roebers, Eline"]
[Result "0-1"]
[Board "20"]
[TimeControl "5400+30"]
[WhiteFideId "34109293"]
[BlackFideId "1058401"]
[WhiteElo "2235"]
[BlackElo "2389"]
[WhiteTitle "WIM"]
[BlackTitle "IM"]
[WhiteClock "0:13:25"]
[BlackClock "0:24:48"]
[Variant "Standard"]

1. e4 {[%clk 1:30:57]}  e6 {[%clk 1:30:24]} 2. d4 {[%clk 1:31:14]}  d5 {[%clk 1:30:51]} 3. e5 {[%clk 1:31:33]}  c5 {[%clk 1:31:18]}
4. c3 {[%clk 1:31:55]}  Qa5 {[%clk 1:31:46]} 5. a3 {[%clk 1:19:30]}  Bd7 {[%clk 1:25:51]} 6. Nf3 {[%clk 1:16:06]}  cxd4 {[%clk 1:18:52]}
7. b4 {[%clk 1:10:54]}  Qa4 {[%clk 1:18:30]} 8. Qxa4 {[%clk 1:08:39]}  Bxa4 {[%clk 1:18:55]} 9. cxd4 {[%clk 1:07:51]}  Nd7 {[%clk 1:17:59]}
10. Nc3 {[%clk 1:03:47]}  Bb3 {[%clk 1:07:20]} 11. Nb5 {[%clk 0:50:47]}  Kd8 {[%clk 1:06:52]} 12. Bg5+ {[%clk 0:50:07]}  f6 {[%clk 1:05:54]}
13. exf6 {[%clk 0:47:53]}  gxf6 {[%clk 1:06:16]} 14. Bf4 {[%clk 0:48:11]}  Rc8 {[%clk 0:51:36]} 15. Nd2 {[%clk 0:37:49]}  Bc2 {[%clk 0:43:36]}
16. Nxa7 {[%clk 0:36:13]}  Ra8 {[%clk 0:42:22]} 17. Nb5 {[%clk 0:36:13]}  e5 {[%clk 0:37:59]} 18. dxe5 {[%clk 0:29:48]}  fxe5 {[%clk 0:38:24]}
19. Bg5+ {[%clk 0:30:13]}  Ngf6 {[%clk 0:38:39]} 20. Rc1 {[%clk 0:28:20]}  Bf5 {[%clk 0:38:45]} 21. Nf3 {[%clk 0:21:53]}  Ra6 {[%clk 0:30:31]}
22. Nc3 {[%clk 0:15:11]}  Rd6 {[%clk 0:30:09]} 23. Bb5 {[%clk 0:15:35]}  Be7 {[%clk 0:28:57]} 24. Na4 {[%clk 0:12:49]}  Rg8 {[%clk 0:27:54]}
25. h4 {[%clk 0:09:21]}  Rg6 {[%clk 0:24:43]} 26. Nc5 {[%clk 0:06:27]}  Nxc5 {[%clk 0:24:52]} 27. bxc5 {[%clk 0:06:51]}  Re6 {[%clk 0:25:17]}
28. h5 {[%clk 0:05:57]}  Rg8 {[%clk 0:23:44]} 29. Bd2 {[%clk 0:05:18]}  Ne4 {[%clk 0:22:49]} 30. Ba5+ {[%clk 0:05:15]}  Kc8 {[%clk 0:23:15]}
31. g3 {[%clk 0:02:17]}  Rf8 {[%clk 0:20:45]} 32. c6 {[%clk 0:00:55]}  Bc5 {[%clk 0:19:26]} 33. Rh2 {[%clk 0:00:32]}  bxc6 {[%clk 0:15:22]}
34. Ba6+ {[%clk 0:00:55]}  Kd7 {[%clk 0:15:40]} 35. Bb4 {[%clk 0:00:49]}  Bxb4+ {[%clk 0:11:22]} 36. axb4 {[%clk 0:01:17]}  Bg4 {[%clk 0:10:47]}
37. Nd2 {[%clk 0:01:37]}  Nxd2 {[%clk 0:11:13]} 38. Kxd2 {[%clk 0:02:02]}  Ref6 {[%clk 0:09:10]} 39. b5 {[%clk 0:01:36]}  Rxf2+ {[%clk 0:05:29]}
40. Rxf2 {[%clk 0:02:01]}  Rxf2+ {[%clk 0:05:56]} 41. Ke1 {[%clk 0:28:43]}  Rf6 {[%clk 0:34:22]} 42. bxc6+ {[%clk 0:26:07]}  Kc7 {[%clk 0:34:43]}
43. Be2 {[%clk 0:21:41]}  Bxe2 {[%clk 0:31:00]} 44. Kxe2 {[%clk 0:22:06]}  Rxc6 {[%clk 0:31:27]} 45. Rf1 {[%clk 0:21:36]}  Rc2+ {[%clk 0:31:17]}
46. Kf3 {[%clk 0:19:33]}  Kd6 {[%clk 0:29:54]} 47. Kg4 {[%clk 0:19:16]}  d4 {[%clk 0:27:42]} 48. Rf6+ {[%clk 0:15:42]}  Kd5 {[%clk 0:27:03]}
49. Rf7 {[%clk 0:16:02]}  h6 {[%clk 0:25:14]} 50. Rd7+ {[%clk 0:15:56]}  Ke4 {[%clk 0:25:15]} 51. Rd6 {[%clk 0:16:22]}  d3 {[%clk 0:24:44]}
52. Rxh6 {[%clk 0:16:47]}  Rc4 {[%clk 0:25:00]} 53. Ra6 {[%clk 0:13:25]}  d2 {[%clk 0:24:48]} 0-1

[Event "2026 European Womens Championship"]
[Site "Batumi, GE"]
[Date "2026.05.27"]
[Round "3"]
[White "Orian, Noga"]
[Black "Mammadzada, Gunay"]
[Result "0-1"]
[Board "21"]
[TimeControl "5400+30"]
[WhiteFideId "2836475"]
[BlackFideId "13403729"]
[WhiteElo "2231"]
[BlackElo "2374"]
[WhiteTitle "WIM"]
[BlackTitle "IM"]
[WhiteClock "0:18:54"]
[BlackClock "0:26:25"]
[Variant "Standard"]

1. d4 {[%clk 1:30:58]}  Nf6 {[%clk 1:28:38]} 2. c4 {[%clk 1:31:22]}  e6 {[%clk 1:29:00]} 3. g3 {[%clk 1:31:44]}  d5 {[%clk 1:29:24]}
4. Bg2 {[%clk 1:32:08]}  Bb4+ {[%clk 1:29:33]} 5. Nd2 {[%clk 1:32:32]}  a5 {[%clk 1:29:50]} 6. Qc2 {[%clk 1:29:32]}  dxc4 {[%clk 1:28:09]}
7. Ngf3 {[%clk 1:24:44]}  b5 {[%clk 1:20:00]} 8. a3 {[%clk 1:09:22]}  Bxd2+ {[%clk 1:16:36]} 9. Bxd2 {[%clk 1:07:46]}  Bb7 {[%clk 1:15:59]}
10. a4 {[%clk 1:07:36]}  Be4 {[%clk 1:13:12]} 11. Qc1 {[%clk 1:00:37]}  c6 {[%clk 0:53:51]} 12. h4 {[%clk 1:00:31]}  Nbd7 {[%clk 0:50:22]}
13. h5 {[%clk 0:59:26]}  h6 {[%clk 0:49:39]} 14. Rh4 {[%clk 0:59:02]}  Qb6 {[%clk 0:38:37]} 15. Kf1 {[%clk 0:51:55]}  c5 {[%clk 0:31:01]}
16. axb5 {[%clk 0:51:01]}  cxd4 {[%clk 0:26:16]} 17. Qxc4 {[%clk 0:49:14]}  e5 {[%clk 0:26:41]} 18. Rxa5 {[%clk 0:46:13]}  O-O {[%clk 0:24:24]}
19. Rxa8 {[%clk 0:36:51]}  Rxa8 {[%clk 0:24:17]} 20. Ne1 {[%clk 0:36:59]}  Qb7 {[%clk 0:22:03]} 21. Bxe4 {[%clk 0:25:22]}  Nxe4 {[%clk 0:21:23]}
22. Bb4 {[%clk 0:25:32]}  Rc8 {[%clk 0:21:43]} 23. Qd3 {[%clk 0:25:29]}  Nef6 {[%clk 0:19:58]} 24. Bd2 {[%clk 0:18:55]}  Qd5 {[%clk 0:14:43]}
25. Qf5 {[%clk 0:16:36]}  Qxb5 {[%clk 0:14:42]} 26. Rxd4 {[%clk 0:14:14]}  Qb7 {[%clk 0:15:06]} 27. Rh4 {[%clk 0:14:39]}  Qxb2 {[%clk 0:11:20]}
28. Be3 {[%clk 0:14:41]}  e4 {[%clk 0:10:29]} 29. Qa5 {[%clk 0:09:10]}  Ne5 {[%clk 0:07:36]} 30. Qd2 {[%clk 0:08:37]}  Qb5 {[%clk 0:05:09]}
31. Kg2 {[%clk 0:02:15]}  Nc4 {[%clk 0:04:25]} 32. Qd4 {[%clk 0:02:43]}  Nxe3+ {[%clk 0:03:52]} 33. Qxe3 {[%clk 0:03:12]}  Qb1 {[%clk 0:02:08]}
34. Rh1 {[%clk 0:03:01]}  Rc1 {[%clk 0:02:32]} 35. Qd2 {[%clk 0:02:55]}  Kh7 {[%clk 0:02:26]} 36. f3 {[%clk 0:01:16]}  Rd1 {[%clk 0:00:59]}
37. Qc3 {[%clk 0:00:37]}  exf3+ {[%clk 0:00:40]} 38. exf3 {[%clk 0:00:35]}  Qa2+ {[%clk 0:00:38]} 39. Kh3 {[%clk 0:00:34]}  Qe2 {[%clk 0:00:39]}
40. Rg1 {[%clk 0:00:32]}  Nxh5 {[%clk 0:00:41]} 41. Qc5 {[%clk 0:24:17]}  g6 {[%clk 0:30:22]} 42. g4 {[%clk 0:21:00]}  Nf4+ {[%clk 0:29:23]}
43. Kg3 {[%clk 0:20:43]}  Rxe1 {[%clk 0:27:54]} 44. Kxf4 {[%clk 0:18:40]}  Qh2+ {[%clk 0:28:19]} 45. Rg3 {[%clk 0:18:54]}  g5+ {[%clk 0:26:25]} 0-1

[Event "2026 European Womens Championship"]
[Site "Batumi, GE"]
[Date "2026.05.27"]
[Round "3"]
[White "Klek, Hanna Marie"]
[Black "Rodshtein, Tereza"]
[Result "0-1"]
[Board "22"]
[TimeControl "5400+30"]
[WhiteFideId "24670057"]
[BlackFideId "325449"]
[WhiteElo "2369"]
[BlackElo "2218"]
[WhiteTitle "WGM"]
[BlackTitle "WGM"]
[WhiteClock "0:32:37"]
[BlackClock "0:29:31"]
[Variant "Standard"]

1. e4 {[%clk 1:30:57]}  e5 {[%clk 1:30:39]} 2. Nf3 {[%clk 1:31:20]}  Nc6 {[%clk 1:31:03]} 3. Bb5 {[%clk 1:31:46]}  Bc5 {[%clk 1:30:25]}
4. O-O {[%clk 1:28:29]}  Nd4 {[%clk 1:30:28]} 5. Nxd4 {[%clk 1:28:23]}  Bxd4 {[%clk 1:30:12]} 6. c3 {[%clk 1:24:14]}  Bb6 {[%clk 1:30:23]}
7. Qh5 {[%clk 1:20:36]}  Qe7 {[%clk 1:23:17]} 8. d3 {[%clk 1:18:25]}  c6 {[%clk 1:20:43]} 9. Ba4 {[%clk 1:17:45]}  Nf6 {[%clk 1:18:55]}
10. Qh4 {[%clk 1:16:35]}  O-O {[%clk 1:16:12]} 11. Kh1 {[%clk 1:09:02]}  d5 {[%clk 1:09:58]} 12. Bc2 {[%clk 1:03:36]}  dxe4 {[%clk 0:58:05]}
13. dxe4 {[%clk 1:03:48]}  Rd8 {[%clk 0:57:25]} 14. a4 {[%clk 0:59:30]}  a5 {[%clk 0:55:28]} 15. Na3 {[%clk 0:59:10]}  h6 {[%clk 0:34:46]}
16. Nc4 {[%clk 0:57:28]}  Bc5 {[%clk 0:34:55]} 17. Qg3 {[%clk 0:29:57]}  Bg4 {[%clk 0:21:47]} 18. Ne3 {[%clk 0:27:00]}  Bxe3 {[%clk 0:20:13]}
19. Bxe3 {[%clk 0:27:21]}  Be2 {[%clk 0:20:26]} 20. Rfe1 {[%clk 0:25:29]}  Bd3 {[%clk 0:20:18]} 21. Bxd3 {[%clk 0:18:25]}  Rxd3 {[%clk 0:20:46]}
22. f3 {[%clk 0:18:31]}  Qd6 {[%clk 0:16:53]} 23. h3 {[%clk 0:15:16]}  Re8 {[%clk 0:12:43]} 24. Qf2 {[%clk 0:12:37]}  Nh5 {[%clk 0:12:26]}
25. Qc2 {[%clk 0:10:16]}  Rd8 {[%clk 0:11:45]} 26. Qb3 {[%clk 0:08:25]}  Rd7 {[%clk 0:08:33]} 27. Qb6 {[%clk 0:08:20]}  Qg6 {[%clk 0:07:23]}
28. b4 {[%clk 0:04:36]}  Rxc3 {[%clk 0:04:34]} 29. Ra2 {[%clk 0:03:34]}  axb4 {[%clk 0:04:14]} 30. Qxb4 {[%clk 0:03:31]}  Rcd3 {[%clk 0:02:59]}
31. Qc5 {[%clk 0:02:26]}  Rd1 {[%clk 0:01:57]} 32. Ra1 {[%clk 0:02:22]}  R1d2 {[%clk 0:01:57]} 33. Bxd2 {[%clk 0:02:22]}  Rxd2 {[%clk 0:02:26]}
34. Rg1 {[%clk 0:02:32]}  Qg3 {[%clk 0:01:04]} 35. Rad1 {[%clk 0:01:55]}  Re2 {[%clk 0:01:18]} 36. Qe7 {[%clk 0:01:31]}  Qf4 {[%clk 0:01:04]}
37. Rd8+ {[%clk 0:00:49]}  Kh7 {[%clk 0:01:33]} 38. Rgd1 {[%clk 0:00:53]}  Qg3 {[%clk 0:01:24]} 39. Rg1 {[%clk 0:01:05]}  Qf4 {[%clk 0:01:37]}
40. Rgd1 {[%clk 0:00:20]}  Ng3+ {[%clk 0:01:31]} 41. Kg1 {[%clk 0:01:38]}  Qe3+ {[%clk 0:29:48]} 42. Kh2 {[%clk 0:32:01]}  Qf2 {[%clk 0:29:44]}
43. Rg1 {[%clk 0:32:12]}  Nf1+ {[%clk 0:29:44]} 44. Kh1 {[%clk 0:32:37]}  Qg3 {[%clk 0:29:31]} 0-1

[Event "2026 European Womens Championship"]
[Site "Batumi, GE"]
[Date "2026.05.27"]
[Round "3"]
[White "Kubicka, Anna"]
[Black "Beydullayeva, Govhar"]
[Result "1/2-1/2"]
[Board "23"]
[TimeControl "5400+30"]
[WhiteFideId "1152254"]
[BlackFideId "13413015"]
[WhiteElo "2226"]
[BlackElo "2368"]
[WhiteTitle "WIM"]
[BlackTitle "WGM"]
[WhiteClock "0:01:47"]
[BlackClock "0:03:59"]
[Variant "Standard"]

1. e4 {[%clk 1:30:53]}  c5 {[%clk 1:30:54]} 2. Nf3 {[%clk 1:31:11]}  d6 {[%clk 1:31:20]} 3. d4 {[%clk 1:31:28]}  cxd4 {[%clk 1:31:43]}
4. Nxd4 {[%clk 1:31:44]}  Nf6 {[%clk 1:31:46]} 5. Nc3 {[%clk 1:32:00]}  a6 {[%clk 1:32:12]} 6. h3 {[%clk 1:32:09]}  e5 {[%clk 1:32:33]}
7. Nde2 {[%clk 1:32:08]}  h5 {[%clk 1:32:02]} 8. g3 {[%clk 1:32:26]}  Be7 {[%clk 1:23:31]} 9. Bg2 {[%clk 1:31:17]}  b5 {[%clk 1:23:23]}
10. Nd5 {[%clk 1:11:12]}  Nxd5 {[%clk 1:09:51]} 11. Qxd5 {[%clk 1:08:50]}  Ra7 {[%clk 1:10:05]} 12. Be3 {[%clk 1:07:51]}  Be6 {[%clk 1:09:56]}
13. Qd2 {[%clk 1:07:12]}  Rb7 {[%clk 1:08:15]} 14. Nc3 {[%clk 1:01:12]}  Qc8 {[%clk 0:53:28]} 15. Nd5 {[%clk 0:57:28]}  Bxd5 {[%clk 0:52:39]}
16. exd5 {[%clk 0:50:02]}  Nd7 {[%clk 0:50:15]} 17. O-O {[%clk 0:44:50]}  f5 {[%clk 0:47:02]} 18. c3 {[%clk 0:19:50]}  O-O {[%clk 0:42:34]}
19. f4 {[%clk 0:19:15]}  e4 {[%clk 0:40:40]} 20. g4 {[%clk 0:19:17]}  g6 {[%clk 0:31:28]} 21. gxh5 {[%clk 0:12:12]}  gxh5 {[%clk 0:31:57]}
22. Kh2 {[%clk 0:12:30]}  Kh7 {[%clk 0:20:14]} 23. Rg1 {[%clk 0:12:55]}  Nf6 {[%clk 0:19:29]} 24. Bd4 {[%clk 0:10:22]}  Bd8 {[%clk 0:15:24]}
25. Bh1 {[%clk 0:03:50]}  Bb6 {[%clk 0:14:20]} 26. Bxb6 {[%clk 0:03:26]}  Rxb6 {[%clk 0:14:49]} 27. Rg5 {[%clk 0:03:49]}  Rb7 {[%clk 0:06:22]}
28. Rag1 {[%clk 0:03:51]}  Rg8 {[%clk 0:05:42]} 29. Qd4 {[%clk 0:01:49]}  Rxg5 {[%clk 0:04:12]} 30. fxg5 {[%clk 0:01:06]}  Nd7 {[%clk 0:04:21]}
31. g6+ {[%clk 0:00:47]}  Kg8 {[%clk 0:04:44]} 32. Qd1 {[%clk 0:00:38]}  Qc5 {[%clk 0:03:08]} 33. Qxh5 {[%clk 0:00:38]}  Qf2+ {[%clk 0:03:31]}
34. Rg2 {[%clk 0:00:57]}  Qf4+ {[%clk 0:03:47]} 35. Rg3 {[%clk 0:00:53]}  Qf2+ {[%clk 0:03:09]} 36. Rg2 {[%clk 0:01:00]}  Qf4+ {[%clk 0:03:33]}
37. Rg3 {[%clk 0:01:29]}  Qf2+ {[%clk 0:03:40]} 38. Rg2 {[%clk 0:01:47]}  Qf4+ {[%clk 0:03:59]} 1/2-1/2

[Event "2026 European Womens Championship"]
[Site "Batumi, GE"]
[Date "2026.05.27"]
[Round "3"]
[White "Mkrtchian, Lilit"]
[Black "Sieber, Fiona"]
[Result "1/2-1/2"]
[Board "24"]
[TimeControl "5400+30"]
[WhiteFideId "13300601"]
[BlackFideId "12902373"]
[WhiteElo "2366"]
[BlackElo "2224"]
[WhiteTitle "IM"]
[BlackTitle "WGM"]
[WhiteClock "0:21:33"]
[BlackClock "0:06:27"]
[Variant "Standard"]

1. Nf3 {[%clk 1:30:48]}  Nf6 {[%clk 1:30:55]} 2. b3 {[%clk 1:30:35]}  d5 {[%clk 1:30:28]} 3. Bb2 {[%clk 1:30:18]}  c5 {[%clk 1:28:46]}
4. e3 {[%clk 1:29:41]}  e6 {[%clk 1:27:15]} 5. c4 {[%clk 1:27:57]}  Nc6 {[%clk 1:26:48]} 6. cxd5 {[%clk 1:27:03]}  exd5 {[%clk 1:25:45]}
7. Bb5 {[%clk 1:26:14]}  Bd6 {[%clk 1:25:19]} 8. Nc3 {[%clk 1:24:10]}  O-O {[%clk 1:24:41]} 9. O-O {[%clk 1:23:27]}  Bg4 {[%clk 1:19:45]}
10. Ne2 {[%clk 1:21:55]}  Bxf3 {[%clk 1:07:13]} 11. gxf3 {[%clk 1:21:43]}  Be5 {[%clk 1:07:05]} 12. d4 {[%clk 0:42:12]}  cxd4 {[%clk 1:07:07]}
13. Nxd4 {[%clk 0:42:11]}  Nxd4 {[%clk 0:59:48]} 14. Bxd4 {[%clk 0:42:34]}  Qd6 {[%clk 0:59:46]} 15. f4 {[%clk 0:29:18]}  Bxd4 {[%clk 1:00:11]}
16. Qxd4 {[%clk 0:29:45]}  Ng4 {[%clk 0:47:44]} 17. h3 {[%clk 0:24:33]}  Nh6 {[%clk 0:46:53]} 18. Bd3 {[%clk 0:23:53]}  Qe6 {[%clk 0:41:59]}
19. Kh2 {[%clk 0:23:55]}  Nf5 {[%clk 0:34:51]} 20. Bxf5 {[%clk 0:19:23]}  Qxf5 {[%clk 0:34:42]} 21. Rac1 {[%clk 0:19:32]}  b6 {[%clk 0:25:18]}
22. Rc7 {[%clk 0:11:48]}  f6 {[%clk 0:21:11]} 23. Rd1 {[%clk 0:08:38]}  Rf7 {[%clk 0:19:19]} 24. Rxf7 {[%clk 0:07:04]}  Kxf7 {[%clk 0:19:43]}
25. Qxd5+ {[%clk 0:07:31]}  Qxd5 {[%clk 0:20:06]} 26. Rxd5 {[%clk 0:07:59]}  Ke6 {[%clk 0:20:26]} 27. e4 {[%clk 0:06:44]}  g6 {[%clk 0:19:12]}
28. f5+ {[%clk 0:06:28]}  Ke7 {[%clk 0:15:56]} 29. a4 {[%clk 0:04:25]}  Rc8 {[%clk 0:15:57]} 30. a5 {[%clk 0:04:45]}  Rc3 {[%clk 0:10:44]}
31. axb6 {[%clk 0:02:07]}  Rxb3 {[%clk 0:09:22]} 32. bxa7 {[%clk 0:02:21]}  Ra3 {[%clk 0:09:47]} 33. h4 {[%clk 0:01:44]}  Rxa7 {[%clk 0:10:00]}
34. Kg3 {[%clk 0:01:57]}  Kf7 {[%clk 0:06:18]} 35. f3 {[%clk 0:02:16]}  Rb7 {[%clk 0:04:25]} 36. Kf4 {[%clk 0:02:32]}  Ra7 {[%clk 0:04:39]}
37. Rb5 {[%clk 0:02:14]}  Rc7 {[%clk 0:04:58]} 38. Kg4 {[%clk 0:02:30]}  Ra7 {[%clk 0:04:43]} 39. Rc5 {[%clk 0:02:21]}  Rb7 {[%clk 0:05:07]}
40. Ra5 {[%clk 0:02:47]}  Rc7 {[%clk 0:05:33]} 41. fxg6+ {[%clk 0:22:38]}  hxg6 {[%clk 0:35:17]} 42. h5 {[%clk 0:22:55]}  gxh5+ {[%clk 0:34:16]}
43. Kxh5 {[%clk 0:23:12]}  Kg7 {[%clk 0:25:30]} 44. Ra6 {[%clk 0:16:47]}  Rc5+ {[%clk 0:23:42]} 45. Kg4 {[%clk 0:17:14]}  Rg5+ {[%clk 0:23:38]}
46. Kf4 {[%clk 0:17:40]}  Rb5 {[%clk 0:24:02]} 47. Rd6 {[%clk 0:18:04]}  Kg6 {[%clk 0:23:23]} 48. Rd5 {[%clk 0:18:15]}  Rb3 {[%clk 0:22:32]}
49. Kg4 {[%clk 0:18:40]}  Rb4 {[%clk 0:22:08]} 50. Rd6 {[%clk 0:18:18]}  Ra4 {[%clk 0:21:31]} 51. Re6 {[%clk 0:18:43]}  Kf7 {[%clk 0:20:41]}
52. Rd6 {[%clk 0:18:05]}  Kg6 {[%clk 0:21:07]} 53. Kf4 {[%clk 0:18:19]}  Ra5 {[%clk 0:19:05]} 54. Ke3 {[%clk 0:18:26]}  Kf7 {[%clk 0:18:24]}
55. f4 {[%clk 0:18:30]}  Ke7 {[%clk 0:18:01]} 56. Rd3 {[%clk 0:18:49]}  Ra1 {[%clk 0:17:13]} 57. Rb3 {[%clk 0:18:38]}  Ra7 {[%clk 0:13:55]}
58. Kf3 {[%clk 0:18:50]}  Ra4 {[%clk 0:13:48]} 59. Rb7+ {[%clk 0:19:06]}  Kf8 {[%clk 0:13:30]} 60. Rc7 {[%clk 0:17:31]}  Ke8 {[%clk 0:13:34]}
61. Ke3 {[%clk 0:17:46]}  Kf8 {[%clk 0:13:57]} 62. Kd3 {[%clk 0:18:04]}  Ke8 {[%clk 0:14:10]} 63. Rc4 {[%clk 0:18:04]}  Ra7 {[%clk 0:13:30]}
64. f5 {[%clk 0:16:25]}  Ke7 {[%clk 0:12:57]} 65. Kd4 {[%clk 0:16:40]}  Rd7+ {[%clk 0:13:09]} 66. Kc5 {[%clk 0:16:45]}  Rd1 {[%clk 0:10:24]}
67. Ra4 {[%clk 0:16:49]}  Rc1+ {[%clk 0:10:31]} 68. Kd5 {[%clk 0:17:14]}  Rd1+ {[%clk 0:10:49]} 69. Rd4 {[%clk 0:17:40]}  Rc1 {[%clk 0:10:16]}
70. Rd2 {[%clk 0:17:59]}  Re1 {[%clk 0:09:58]} 71. Kd4 {[%clk 0:17:24]}  Ra1 {[%clk 0:09:13]} 72. Rh2 {[%clk 0:17:26]}  Ra4+ {[%clk 0:09:18]}
73. Ke3 {[%clk 0:17:52]}  Rb4 {[%clk 0:09:28]} 74. Rh7+ {[%clk 0:18:12]}  Kf8 {[%clk 0:09:51]} 75. Kf4 {[%clk 0:18:31]}  Ra4 {[%clk 0:10:05]}
76. Rb7 {[%clk 0:18:56]}  Kg8 {[%clk 0:10:16]} 77. Kg4 {[%clk 0:18:21]}  Rxe4+ {[%clk 0:08:21]} 78. Kh5 {[%clk 0:18:45]}  Re1 {[%clk 0:06:08]}
79. Kg6 {[%clk 0:19:04]}  Rg1+ {[%clk 0:06:28]} 80. Kxf6 {[%clk 0:19:28]}  Rf1 {[%clk 0:05:31]} 81. Rb8+ {[%clk 0:19:19]}  Kh7 {[%clk 0:06:00]}
82. Re8 {[%clk 0:19:31]}  Rf2 {[%clk 0:05:31]} 83. Ke6 {[%clk 0:19:41]}  Kg7 {[%clk 0:05:01]} 84. Re7+ {[%clk 0:20:05]}  Kf8 {[%clk 0:04:58]}
85. Ra7 {[%clk 0:20:27]}  Rf1 {[%clk 0:04:34]} 86. Kf6 {[%clk 0:20:42]}  Kg8 {[%clk 0:05:00]} 87. Ra8+ {[%clk 0:21:08]}  Kh7 {[%clk 0:05:26]}
88. Rf8 {[%clk 0:21:33]}  Ra1 {[%clk 0:05:38]} 89. Re8 {[%clk 0:21:42]}  Rf1 {[%clk 0:05:20]} 90. Ke6 {[%clk 0:20:26]}  Kg7 {[%clk 0:05:45]}
91. Re7+ {[%clk 0:20:31]}  Kf8 {[%clk 0:05:45]} 92. Ra7 {[%clk 0:20:56]}  Kg8 {[%clk 0:06:05]} 93. Ra8+ {[%clk 0:21:15]}  Kg7 {[%clk 0:06:27]}
94. Ra7+ {[%clk 0:21:33]} 1/2-1/2